Cogmind - Beta 15 *** ADVENTURER MODE // 2025.07.14 @ 15:44:37 Player: Dingot Result: Destroyed by G-47 Trooper with Particle Gun Performance ------------- Evolutions (0) 0 Regions Visited (1) 200 Robots Destroyed (2) 10 Value Destroyed (9) 9 Prototype IDs (0) 0 Alien Tech Used (0) 0 Bonus (0) 0 TOTAL SCORE: 219 Bonus ------- None Cogmind --------- Core Integrity 0/250 Matter 193/300 Energy 100/100 System Corruption 0% Temperature Cool (9) Movement Core (1350) Ox26 Location -10/Materials Parts ------- > --- POWER (1) -------- (None) > --- PROPULSION (2) --- (None) > --- UTILITY (2) ------ Huge Storage Unit > --- WEAPON (2) ------- Mini Grenade Launcher > --- INVENTORY (25) --- Signal Interpreter Peak State ------------ > --- POWER ------------ Ion Engine > --- PROPULSION ------- Light Treads Light Treads > --- UTILITY ---------- Small Storage Unit Large Storage Unit > --- WEAPON ----------- Assault Rifle Assault Rifle > --- INVENTORY -------- (None) [Rating: 7] Favorites ----------- Power Ion Engine Engine Ion Engine Propulsion Light Treads Treads Light Treads Utility Small Storage Unit Storage Small Storage Unit Weapon Assault Rifle Ballistic Gun Assault Rifle Launcher Mini Grenade Launcher Build | -11 -10 ------- Run | Yrd Mat Slots Evolved . | . . Power . | . . Propulsion . | . . Utility . | . . Weapon . | . . Parts Attached 10 | 6 4 Power 1 | 1 . Engine 1 | 1 . Core . | . . Reactor . | . . Propulsion 3 | 2 1 Treads 3 | 2 1 Leg . | . . Wheel . | . . Hover . | . . Flight . | . . Utility 3 | 1 2 Device . | . . Storage 3 | 1 2 Processor . | . . Hackware . | . . Protection . | . . Artifact . | . . Weapon 3 | 2 1 Energy Gun . | . . Energy Cannon . | . . Ballistic Gun 2 | 2 . Ballistic Cannon . | . . Launcher 1 | . 1 Special Weapon . | . . Impact Weapon . | . . Slashing Weapon . | . . Piercing Weapon . | . . Special Melee Weapon . | . . Unidentified Prototypes . | . . Parts Lost 6 | . 6 Power 1 | . 1 Propulsion 3 | . 3 Utility . | . . Weapon 2 | . 2 Highest Loss Streak 6 | . 6 To Critical Strikes . | . . Average Backups . | . . Power . | . . Propulsion . | . . Utility . | . . Weapon . | . . Tool/Special . | . . Unused Backups . | . . Power . | . . Propulsion . | . . Utility . | . . Weapon . | . . Tool/Special . | . . Average Slot Usage (%) 80 | . 80 Engine 12 | . 12 Treads 25 | . 25 Storage 18 | . 18 Ballistic Gun 21 | . 21 Launcher 1 | . 1 Peak Build Rating 7 | 6 7 Average Rating 5 | 4 5 On Entrance 3 | . 6 Naked Turns . | . . Heaviest Build 87 | 14 87 Greatest Support 40 | 40 40 Greatest Overweight (x) 4 | . 4 Average Overweight (x) . | . . Largest Inventory Capacity 25 | 8 25 Average Capacity 15 | 7 17 Most Carried 5 | 5 3 Average Carried . | . . Final Capacity 25 | 8 25 Final Carried 1 | . 1 Class Distribution -------------------- 100% | Mutant Dominant Class ---------------- Mutant | -10/Materials Resources | -11 -10 ----------- Run | Yrd Mat Matter Collected 237 | 237 . Remotely . | . . Salvage Created 68 | 17 51 Parts 7 | 3 4 Haulers Intercepted 1 | . 1 Recyclers Shooed . | . . Parts Field Recycled . | . . Retrieved Matter . | . . Parts Self-Destructed . | . . Prevented . | . . Kills | -11 -10 ------- Run | Yrd Mat Combat Hostiles Destroyed . | . . Classes Destroyed 2 | 1 1 Tunneler 1 | 1 . Hauler 1 | . 1 Best Kill Streak 1 | 1 1 Combat Bots Only . | . . Max Kills in Single Turn 1 | 1 1 Gunslinging . | . . Exploded . | . . Melee . | . . Uniques/NPCs Destroyed . | . . Combat | -11 -10 -------- Run | Yrd Mat Hostile Shots Fired 137 | . 137 Missed 37 | . 37 Hits 100 | . 100 Projectile 100 | . 100 AOE 1 | . 1 Critical Strikes 1 | . 1 Damage Taken 994 | . 994 Core 254 | . 254 Absorbed by Shields . | . . Ignored by Resistances 309 | . 309 Core Remaining (%) 100 | 100 . Volleys Fired 13 | 1 12 Largest 2 | 2 2 Hottest 50 | 40 50 Shots Fired 20 | 2 18 Gun 18 | 2 16 Cannon . | . . Launcher 2 | . 2 Special . | . . Kinetic 18 | 2 16 Thermal . | . . Explosive 2 | . 2 Electromagnetic . | . . Robot Hit Streak 9 | 1 9 Robot Miss Streak 1 | . 1 Penetration Max . | . . Secondary Targets . | . . Shots Hit Robots 13 | 1 12 Core Hits 6 | 1 5 Critical Kills . | . . Critical Parts Destroyed . | . . Critical Strikes . | . . Melee Attacks . | . . Impact . | . . Slashing . | . . Piercing . | . . Sneak Attacks . | . . Combat Hostiles . | . . Follow-up Attacks . | . . Damage Inflicted 180 | 12 168 Guns 155 | 12 143 Cannons . | . . Explosions 25 | . 25 Melee . | . . Ramming . | . . Kinetic 155 | 12 143 Thermal . | . . Explosive 25 | . 25 Electromagnetic . | . . Impact . | . . Slashing . | . . Piercing . | . . Highest Corruption . | . . Average Corruption . | . . Corruption Purged . | . . Corruption Blocked . | . . Overload Shots . | . . Overflow Damage . | . . Projectiles . | . . Explosions . | . . Melee . | . . Knockbacks . | . . Impact . | . . Kinetic . | . . Secondary . | . . Self-Inflicted Damage . | . . Shots . | . . Rammed . | . . Targets Rammed . | . . Kicked . | . . Crushed . | . . Highest Temperature 36 | . 36 Average Temperature 11 | . 11 Received Heat Transfer 690 | . 690 Siege Activations . | . . Martial Activations . | . . Shielding Activations . | . . Robots Disrupted . | . . Combat Hostiles . | . . Robots Corrupted . | . . Combat Hostiles . | . . Parts Fried . | . . Impact Corruptions . | . . Robots Melted . | . . Combat Hostiles . | . . Parts Melted . | . . Heat Transferred . | . . Parts Sabotaged . | . . Parts Stolen . | . . Parts Stripped . | . . Power Chain Reactions . | . . Alert | -11 -10 ------- Run | Yrd Mat Maximum Alert Level . | . . Low Security (%) 100 | 100 100 Level 1 . | . . Level 2 . | . . Level 3 . | . . Level 4 . | . . Level 5 . | . . High Security . | . . Max Security . | . . Peak Influence 9 | 5 9 Initial 2 | . 2 Average . | . . Influence Increases 21 | 5 16 Destroy 0b10 Robot/NC 10 | 5 5 Destroy Leader 2 | . 2 Destroy Structure 9 | . 9 Influence Decreases 21 | . 21 Entered New Map 3 | . 3 Time Decay 2 | . 2 Lost Part 16 | . 16 Squads Dispatched 1 | . 1 Investigation 1 | . 1 Extermination . | . . Reinforcement . | . . Assault . | . . Garrison . | . . Intercept . | . . Searches Triggered . | . . Construction Impeded . | . . Haulers Reinforced . | . . Active Scanning Responses . | . . Cargo Convoy Interrupts . | . . Stealth | -11 -10 --------- Run | Yrd Mat Distress Signals 1 | . 1 Communications Jammed . | . . Distress Signals . | . . Times Spotted 11 | . 11 Peak Tracking Total 8 | . 8 Tactical Retreats . | . . Traps | -11 -10 ------- Run | Yrd Mat Traps Triggered . | . . Indirectly . | . . Trap Hack Attempts . | . . Triggered . | . . Disarmed . | . . Reprogrammed . | . . Reused . | . . Traps Extracted . | . . Installed . | . . Triggered . | . . Machines | -11 -10 ---------- Run | Yrd Mat Machines Disabled . | . . Max in Single Turn . | . . Machines Repaired . | . . Machines Dismantled . | . . Machines Sabotaged . | . . Overloaded Fab Kills . | . . Hacking | -11 -10 --------- Run | Yrd Mat Machines Accessed 2 | . 2 Terminals 2 | . 2 Fabricators . | . . Repair Stations . | . . Recycling Units . | . . Scanalyzers . | . . Garrison Access . | . . Total Hacks 6 | . 6 Successful 3 | . 3 Failed 3 | . 3 Catastrophic 1 | . 1 Database Lockouts . | . . Manual 3 | . 3 Terminals 6 | . 6 Fabricators . | . . Repair Stations . | . . Recycling Units . | . . Scanalyzers . | . . Garrison Access . | . . Terminal Hacks 3 | . 3 Record 2 | . 2 Registered Components 1 | . 1 Fabricator Hacks . | . . Repair Station Hacks . | . . Recycling Unit Hacks . | . . Scanalyzer . | . . Garrison Access Hacks . | . . Unauthorized Hacks . | . . Terminals . | . . Fabricators . | . . Repair Stations . | . . Recycling Units . | . . Scanalyzers . | . . Garrison Access . | . . Data Cores Recovered . | . . Used . | . . Hacking Detections 1 | . 1 Full Trace Events 1 | . 1 Feedback Events . | . . Feedback Blocked . | . . Robot Schematics Acquired . | . . Robots Built . | . . Authchips . | . . Time . | . . Total Robot Build Rating . | . . Part Schematics Acquired . | . . Parts Built . | . . Authchips . | . . Time . | . . Total Part Build Rating . | . . Parts Repaired . | . . Time . | . . Parts Recycled . | . . Recycled Matter . | . . Retrieved Matter . | . . Retrieved Components . | . . Parts Scanalyzed . | . . Part Schematics Acquired . | . . Parts Damaged . | . . Bothacking | -11 -10 ------------ Run | Yrd Mat Used RIF Installer . | . . Robots Hacked . | . . Non-combat . | . . Combat . | . . Robot Hacks Applied . | . . Relay Couplers Released . | . . Fabnet Peak Effective % . | . . Robots Rewired . | . . Allies Hacked . | . . Hacks Repelled . | . . Allies | -11 -10 -------- Run | Yrd Mat Total Allies . | . . Largest Group . | . . Highest-Rated Group . | . . Highest-Rated Ally . | . . Total Orders . | . . Ally Attacks . | . . Total Damage . | . . Kills . | . . Allies Corrupted . | . . Allies Melted . | . . Intel | -11 -10 ------- Run | Yrd Mat Active Infowar (turns) . | . . Robot Analysis Total . | . . Derelict Logs Recovered . | . . Drone Launches . | . . Drone Recoveries . | . . Exploration | -11 -10 ------------- Run | Yrd Mat Turns Passed 265 | 58 207 Spaces Moved 122 | 39 83 Core 17 | 17 . Treads 105 | 22 83 Legs . | . . Wheels . | . . Hover . | . . Flight . | . . Fastest Speed 50 | 50 160 Average Speed 172 | 112 200 Slowest Speed 480 | 160 480 Overloaded Moves . | . . Propulsion Burnouts . | . . Robots Hopped . | . . Potential Cave-ins . | . . Cave-ins Triggered . | . . Exploration Rate (%) 11 | 3 19 Regions Visited 1 Branch Regions . Pre-discovered Areas . | . . Known Exits Taken . | . . Unknown Exits Taken 1 | 1 . Scrap Searched . | . . Spaces Dug . | . . Terrain Destroyed 9 | . 9 Melee . | . . Projectile . | . . AOE 9 | . 9 Terrain Rammed . | . . Walls Destroyed . | . . Machines Disabled . | . . Actions | -11 -10 --------- Run | Yrd Mat Total 157 | 51 106 Wait . | . . Move 121 | 38 83 Hop . | . . Pick Up 11 | 6 5 Fast Attach . | . . Attach 10 | 6 4 Detach . | . . Swap . | . . Drop 2 | . 2 Fire 13 | 1 12 Melee . | . . Ram . | . . Kick . | . . Crush . | . . Escape Stasis . | . . Rewire . | . . Trap . | . . Miscellaneous . | . . Route ------- -11/Scrapyard -10/Materials History --------- Turn | Location | Event 6 | -11/Scrapyard | Discovered new exit (range 15) 59 | -11/Scrapyard | Entered Materials 245 | -10/Materials | Core integrity fell below 50% 260 | -10/Materials | Core integrity fell below 20% 266 | -10/Materials | Destroyed by G-47 Trooper with Particle Gun Last Messages --------------- 00221_ U-05 Engineer lays Concrete. 00222_ U-05 Engineer builds a Wall. 00223_ Acquired Signal Interpreter. 00224_ U-05 Engineer lays Concrete. 00226_ U-05 Engineer builds a Wall. 00226_ U-05 Engineer lays Concrete. 00229_ Acquired Lgt. Treads. 00229_ U-05 Engineer builds a Door. 00239_ Acquired Mni. Grenade Launcher. 00240_ Ion Engine destroyed. 00244_ Critical hit (Burn: +37). 00245_ Assault Rifle destroyed. 00250_ Lgt. Treads destroyed. 00254_ U-05 Engineer lays Concrete. 00255_ The unstable cave ceiling collapses. 00256_ U-05 Engineer lays Concrete. 00261_ Lgt. Treads destroyed. 00261_ U-05 Engineer lays Concrete. 00265_ U-05 Engineer builds a Wall. 00265_ U-05 Engineer lays Concrete. Map ----- +----------------------------------------------------+ | ?????????????????????????????????##########?? | | ???????????????????????????##????# !##? | | ???????????????????????????# ### !#? | | ??????????????????????????/ !#? | | ?????????????????????????????????# #? | | ?????????????????????????????????# !#? | | ?????????????????????????????????## #### !##? | | ??????????????????????????????????# #??####?? | | ??????????????????????????????????# #???????? | | ??????????????????????????????????# #???????? | | ??????????????????????????????????# #???????? | | ??????????????????????????????????# #???????? | | ????????????????????????????????### ########? | | ????????????????????????????????# # #? | | ????????????????????????????????# # """ #? | | ????????????????????????????????# # "T" #? | | ????????????????????############# + #? | | ???????????????????= # #? | | ???????????????????= # #? | | ?????????????????[? ########? | | ??????????????????? ########## #???????? | | ?????????????????? ???????????# #???????? | | ?????????????????"" ??????????# #???????? | | ?????????????? ?""" ?########?# ##??????? | | ?????????????? """ ?#[[!!]]#?# T#??????? | | ????????????? #[@!!] #?# ##??????? | | ????????????? # #?# #???????? | | ????????????# # gggg### ##??????? | | ????????????? [[ u %/! #??????? | | ????????????# [[ !/! +??????? | | ????????????? % #??????? | | ????????????? #####+#;+#??????? | | ??????????????? ##### # %=** #??????? | | ????????????????????# %!! #??????? | | ????????????????????# [ ! #??????? | | ????????????????????# #??????? | | ????????????????????# # #??????? | | ????????????????????# w# u !#??????? | | ????????????????????# ######## """"##??????? | | ????????????????????# " ###???????? | | ????????????????????# ###?????????? | | ????????????????????# """" #???????????? | | ????????????????????# """" #???????????? | | ????????????????????# """" #???????????? | | ????????????????????# ? ##???????????? | | ????????????????????# ???? #????????????? | | ????????????????????# ???? #????????????? | | ????????????????????# ????? #????????????? | | ????????????????????? ?????????????????????? | | ????????????????????????????!???????????????? | +----------------------------------------------------+ Best States ------------- Heat Dissipation 25 Energy Generation 10 Energy Capacity 250 Matter Stores 271 Matter Capacity 300 Sight Range 16 Terrain Scan Density 10 Resistance: KI 20 Resistance: TH 20 Resistance: EX 20 Resistance: EM 20 Resistance: I 20 Resistance: S 20 Resistance: P 20 Evasion (%) 50 Recoil Reduction 2 Offensive Hacking 10 Item Schematics ----------------- None Robot Schematics ------------------ None Fabricated ------------ Nothing Repaired ---------- Nothing Alien Tech Used ----------------- None Achievements -------------- None Challenges ------------ None Game ------ Seed NanofilamentsOmegaLaser Manual? 0 Play Time 00:06:16 Cumulative 26.0 hours Start 2025.07.14 @ 15:37:10 End 2025.07.14 @ 15:44:37 Sessions 1 Manual Loads 0 Difficulty Adventurer Special Mode None Game No. 37 Rogue 35 Adventurer 2 Explorer 0 Win Type - Total 1 Types 1/0/0/0/0/0/0/0/0/0 Lore% 23 Gallery% 23 Achievement% 32 Wizard Run 0 Options --------- Layout 1 ASCII 0 Keyboard 0 Movement Mouse Keybinds 0 Fullscreen 1 Font 24/Smallcaps Map View 50x35 Zoom Use 0% Tactical HUD 1 Map Filters NONE Filters NONE Steam 1 RUN: 0a2125f4-e86a-455b-bda6-6243b64db40c